bitfinex/quotes_ETHUSD_20220308
["timestamp","ask_amount","ask_price","bid_price","bid_amount"]
[1646712803904,1.0159,2557.6,2557.5,13.87532]
[1646712804110,10.0,2558.0,2557.8,0.97731]
[1646712804707,4.13674,2558.0,2557.9,14.85179]
[1646712805104,4.13674,2558.0,2557.9,15.85179]
[1646712807258,4.13674,2558.0,2557.9,16.43444407]
[1646712807259,1.44749546,2558.0,2557.9,16.43444407]
[1646712808461,1.44749546,2558.0,2557.9,4.51444407]
[1646712808859,1.44749546,2558.0,2557.9,3.93179]
[1646712812014,1.44749546,2558.0,2557.9,2.93179]
[1646712812609,3.04089631,2558.0,2557.8,0.97731]
[1646712812809,1.44749546,2558.0,2557.8,0.97731]
[1646712813008,1.593488,2557.9,2557.8,0.97731]
[1646712817703,1.44749546,2558.0,2557.8,5.45466]
[1646712817902,1.44749546,2558.0,2557.9,2.93189]
[1646712818303,3.04084383,2558.0,2557.9,2.93189]
[1646712818504,3.04084383,2558.0,2557.9,2.92760674]
[1646712819204,1.44749546,2558.0,2557.9,2.92760674]
[1646712820205,1.44749546,2558.0,2557.9,15.84760674]
[1646712820406,1.44749546,2558.0,2557.9,16.42257888]
[1646712821109,1.44749546,2558.0,2557.9,4.49616588]
[1646712826308,1.44749546,2558.0,2557.9,16.41616588]
[1646712826710,1.39749546,2558.0,2557.9,16.41616588]
[1646712827515,1.2284,2558.6,2558.1,12.89724]
[1646712827712,1.59311238,2558.5,2558.2,12.89721]
[1646712827911,2.36904399,2558.7,2558.2,12.89721]
[1646712827912,1.59311238,2558.4,2558.2,12.89721]
[1646712828113,0.00534399,2558.7,2558.2,12.89721]
[1646712828114,1.59311238,2558.3,2558.2,12.89721]
[1646712828313,0.00534399,2558.7,2558.2,12.89721]
[1646712828314,1.59311238,2558.6,2558.2,12.89721]
[1646712828717,1.59311238,2558.5,2558.2,12.89721]
[1646712828968,0.00535006,2558.7,2558.3,14.85118]
[1646712829463,0.00535006,2558.7,2558.3,15.85118]
[1646712829661,1.86565971,2559.1,2558.3,15.85118]
[1646712830070,0.00535027,2558.7,2558.4,11.92]
[1646712830267,0.00535027,2558.7,2558.5,0.97712]
[1646712830871,1.86565971,2559.1,2558.5,0.97712]
[1646712831073,0.0053503,2558.7,2558.5,0.97712]
[1646712831969,1.86565971,2559.1,2558.5,0.97712]
[1646712832169,4.19938072,2559.8,2558.8,14.92]
[1646712832170,0.44641066,2559.6,2558.8,14.92]
[1646712832375,2.78078976,2560.0,2559.9,0.55022877]
[1646712832376,0.3909,2560.0,2559.9,0.55022877]
[1646712832615,0.02136179,2560.5,2559.9,0.55022877]
[1646712832616,0.02136179,2560.5,2559.9,20.9842]
[1646712832805,0.02136179,2560.5,2560.1,11.92]
[1646712833005,0.02136179,2560.5,2560.3,11.92]
[1646712833205,1.02936448,2560.4,2560.2,7.8119]
[1646712833404,1.95736448,2560.4,2560.3,1.97647]
[1646712833606,1.96002367,2560.4,2560.3,0.97647]
[1646712833806,0.93065919,2560.4,2560.3,0.97647]
[1646712834204,0.01063517,2560.8,2560.4,0.9762664]
[1646712834408,9.805,2561.0,2560.4,12.8962664]
[1646712834606,9.805,2561.0,2560.5,14.84878]
[1646712834805,0.01063517,2560.9,2560.6,13.87252]
[1646712835005,9.805,2561.0,2560.6,15.8249444]
[1646712835208,9.805,2561.0,2560.8,11.92]
[1646712835406,9.805,2561.0,2560.8,14.36324]
[1646712835606,3.94827,2561.0,2560.8,14.36324]
[1646712835805,0.928,2560.9,2560.8,14.36324]
[1646712836207,3.94827,2561.0,2560.9,2.9285]
[1646712842926,3.94827,2561.0,2560.9,2.8785]
[1646712844154,3.94827,2561.0,2560.8,0.97613]
[1646712844155,3.94827,2561.0,2560.7,0.97616]
[1646712844357,3.94827,2561.0,2560.8,7.8101]
[1646712845559,3.95375221,2561.0,2560.8,7.8101]
[1646712846561,3.94827,2561.0,2560.8,7.8101]
[1646712846764,3.95375221,2561.0,2560.8,7.8101]
[1646712847604,3.94827,2561.0,2560.8,7.8101]
[1646712848004,3.95360577,2561.0,2560.8,7.8101]
[1646712848806,3.94827,2561.0,2560.8,7.8101]
[1646712849006,1.59186793,2560.9,2560.8,7.8101]
[1646712849205,3.95360577,2561.0,2560.8,7.8101]
[1646712850006,3.94827,2561.0,2560.8,7.8101]
[1646712850310,3.95360577,2561.0,2560.8,7.8101]
[1646712850908,3.95360577,2561.0,2560.8,19.7301]
[1646712851363,3.94827,2561.0,2560.8,19.7301]
[1646712851560,3.95361566,2561.0,2560.8,19.7301]
[1646712852155,3.95361566,2561.0,2560.8,7.8101]
[1646712852559,3.94827,2561.0,2560.8,6.11212555]
[1646712852756,3.95361566,2561.0,2560.8,6.11212555]
[1646712853758,3.94827,2561.0,2560.8,6.11212555]
[1646712853958,3.95361566,2561.0,2560.8,6.11212555]
[1646712854959,3.94827,2561.0,2560.8,6.11212555]
[1646712855208,3.95091921,2561.0,2560.8,6.11212555]
[1646712855409,3.95091921,2561.0,2560.8,18.03212555]
[1646712855809,3.95091921,2561.0,2560.8,6.11212555]
[1646712856012,3.94827,2561.0,2560.8,6.11212555]
[1646712856209,3.95091921,2561.0,2560.8,6.11212555]
[1646712857216,3.94827,2561.0,2560.8,6.11212555]
[1646712857416,3.95091921,2561.0,2560.8,6.11212555]
[1646712858415,0.89823357,2560.9,2560.8,6.11212555]
[1646712858618,2.49015826,2560.9,2560.8,6.11212555]
[1646712859256,2.49015826,2560.9,2560.6,0.61054447]
[1646712859456,0.89823357,2560.9,2560.6,0.61054447]
[1646712859655,0.89823357,2560.9,2560.6,0.01772555]
[1646712859856,1.59199067,2560.8,2560.7,7.8102]
[1646712860056,1.59199067,2560.8,2560.7,9.76273]
[1646712860658,0.89823357,2560.9,2560.7,9.76273]
[1646712860858,3.9538355,2561.0,2560.7,9.76273]
[1646712860859,3.94827,2561.0,2560.7,9.76273]
[1646712861059,3.94827,2561.0,2560.7,10.7389822]
[1646712861262,3.9538355,2561.0,2560.7,10.7389822]
[1646712861463,3.9538355,2561.0,2560.7,10.9341822]
[1646712862067,3.94827,2561.0,2560.7,9.95793]
[1646712862267,3.95392433,2561.0,2560.7,9.95793]
[1646712863105,3.95392433,2561.0,2560.7,9.76273]
[1646712863305,3.94827,2561.0,2560.7,9.76273]
[1646712863706,3.95373649,2561.0,2560.7,9.76273]
[1646712864509,3.94827,2561.0,2560.7,9.76273]
[1646712864708,3.95373649,2561.0,2560.7,9.76273]
[1646712865308,3.95373649,2561.0,2560.7,10.76273]
[1646712865511,3.95373649,2561.0,2560.7,11.7390022]
[1646712865708,3.94827,2561.0,2560.7,11.7390022]
[1646712865910,3.95372266,2561.0,2560.7,11.7390022]
[1646712866110,3.99400482,2561.0,2560.7,11.7390022]
[1646712866763,3.99400482,2561.0,2560.7,10.76273]
[1646712866965,3.98855216,2561.0,2560.7,10.76273]
[1646712867165,3.9938778,2561.0,2560.7,10.76273]
[1646712868166,3.98855216,2561.0,2560.7,10.76273]
[1646712868366,3.9938778,2561.0,2560.7,10.76273]
[1646712869168,3.9938778,2561.0,2560.7,11.06273]
[1646712869369,3.98855216,2561.0,2560.7,11.06273]
[1646712869569,3.99389164,2561.0,2560.7,11.06273]
[1646712870616,3.98855216,2561.0,2560.7,11.06273]
[1646712870817,3.99390068,2561.0,2560.7,11.06273]
[1646712871720,3.98855216,2561.0,2560.7,11.06273]
[1646712871919,4.69995132,2561.0,2560.7,11.06273]
[1646712872521,4.69995132,2561.0,2560.7,9.36476897]
[1646712872919,0.70605064,2560.8,2560.7,8.36476897]
[1646712873120,0.7260329,2560.8,2560.7,8.36476897]
[1646712873320,0.01998226,2560.8,2560.7,9.34113897]
[1646712874363,0.90471575,2560.8,2560.7,9.34113897]
[1646712874659,0.01998226,2560.8,2560.7,9.34113897]
[1646712874858,0.94181206,2560.9,2560.7,9.34113897]
[1646712875058,0.94181206,2560.9,2560.7,10.34113897]
[1646712875258,4.90974668,2561.0,2560.7,10.34113897]
[1646712875660,4.91509407,2561.0,2560.7,10.34113897]
[1646712875862,4.91509407,2561.0,2560.7,10.31741007]
[1646712876063,0.94181206,2560.9,2560.7,11.31741007]
[1646712876871,0.94181206,2560.9,2560.7,10.34113897]
[1646712878311,0.94181206,2560.8,2560.7,10.34113897]
[1646712884769,1.59192099,2560.8,2560.7,10.34113897]
[1646712884969,2.53373305,2560.9,2560.7,10.34113897]
[1646712885410,1.59192099,2560.8,2560.7,10.34113897]
[1646712885611,2.30729127,2560.9,2560.7,11.31742897]
[1646712886309,2.30729127,2560.9,2560.7,12.29368577]
[1646712886913,2.30729127,2560.9,2560.7,15.79368577]
[1646712887110,2.30729127,2560.9,2560.7,12.29368577]
[1646712887512,2.30729127,2560.9,2560.7,2.29368577]
[1646712887711,2.30729127,2560.9,2560.7,1.29368577]
[1646712888112,2.30729127,2560.9,2560.7,2.27005577]
[1646712888870,1.59192099,2560.8,2560.7,2.27005577]
[1646712889258,2.25729127,2560.9,2560.7,2.27005577]
[1646712889458,1.59192099,2560.8,2560.7,2.27005577]
[1646712889659,2.25729127,2560.9,2560.7,2.27005577]
[1646712889861,1.59192099,2560.8,2560.7,2.27005577]
[1646712890661,2.25729127,2560.9,2560.7,2.27005577]
[1646712890860,2.25729127,2560.9,2560.7,7.04632577]
[1646712891062,2.25729127,2560.9,2560.8,3.5]
[1646712891361,1.59192099,2560.9,2560.8,19.803]
[1646712893606,1.59192099,2560.9,2560.8,16.303]
[1646712894407,1.59192099,2560.9,2560.8,14.60516805]
[1646712900408,2.75845484,2560.9,2560.8,14.60516805]
[1646712900612,2.3063934,2560.9,2560.8,14.60516805]
[1646712901315,1.59192099,2560.9,2560.8,14.60516805]
[1646712902014,5.09192099,2560.9,2560.8,14.60516805]
[1646712902215,1.59192099,2560.9,2560.8,15.58166805]
[1646712902516,2.54465369,2560.9,2560.8,15.58166805]
[1646712902916,2.54458007,2560.9,2560.8,15.58166805]
[1646712903117,1.59192099,2560.9,2560.8,15.58166805]
[1646712904761,2.30635531,2560.9,2560.8,15.58166805]
[1646712904961,1.59192099,2560.9,2560.8,15.58166805]
[1646712907265,2.30632429,2560.9,2560.8,15.58166805]
[1646712908311,1.59192099,2560.9,2560.8,15.58166805]
[1646712909112,1.59192099,2560.9,2560.8,15.91841645]
[1646712909513,2.75633353,2560.9,2560.8,15.91841645]
[1646712909716,3.70899261,2560.9,2560.8,6.84e-06]
[1646712909915,2.75633353,2560.9,2560.8,6.84e-06]
[1646712910114,1.89192099,2560.9,2560.8,6.84e-06]
[1646712910313,5.39192099,2560.9,2560.8,6.84e-06]
[1646712910516,8.70502099,2560.9,2560.8,6.84e-06]
[1646712910716,0.00079316,2560.6,2559.6,0.3904]
[1646712910919,0.3131,2559.8,2559.7,0.1953]
[1646712911116,2.03876837,2559.8,2559.3,0.02031222]
[1646712911374,0.7042,2559.6,2558.6,2.38246501]
[1646712911569,0.7042,2559.4,2558.7,0.1953]
[1646712911869,0.3131,2559.2,2559.0,1.95414]
[1646712912068,0.3131,2559.1,2559.0,2.14944]
[1646712912471,1.90570744,2559.1,2559.0,2.14944]
[1646712912671,0.3131,2559.1,2559.0,2.14944]
[1646712913071,0.3131,2559.1,2559.0,2.143027]
[1646712913072,1.32212418,2559.1,2559.0,2.143027]
[1646712913669,1.32212418,2559.1,2559.0,1.947727]
[1646712914071,1.32212418,2559.1,2559.0,1.94131092]
[1646712915214,1.32212418,2559.1,2558.9,1.95419]
[1646712915215,2.91478612,2559.1,2558.9,1.95419]
[1646712915416,1.32212418,2559.1,2558.9,0.00507722]
[1646712915617,5.4058291,2559.0,2558.9,0.00507722]
[1646712915813,0.3131,2558.6,2558.5,0.02031179]
[1646712916314,0.3131,2558.6,2558.2,7.35]
[1646712916315,1.90614044,2558.6,2558.2,7.35]
[1646712916517,0.3131,2558.4,2558.2,7.35]
[1646712916721,1.20176171,2558.3,2558.2,8.32748]
[1646712916916,1.20176171,2558.3,2558.2,0.97748]
[1646712917320,0.3131,2558.3,2558.2,0.97748]
[1646712918120,0.01515444,2558.8,2558.2,0.97748]
[1646712918516,0.8649,2558.6,2558.2,0.97748]
[1646712918718,0.8649,2558.6,2558.2,1.17278]
[1646712918960,0.8649,2558.6,2558.4,0.00536468]
[1646712919162,0.8649,2558.6,2558.5,0.97722]
[1646712920562,0.8822056,2558.6,2558.5,0.97722]
[1646712922170,0.8822056,2558.6,2558.4,1.9597945]
[1646712922369,0.8822056,2558.6,2558.4,1.95444]
[1646712922614,0.8822056,2558.6,2558.4,1.9597945]
[1646712923418,0.8822056,2558.6,2558.4,1.95444]
[1646712923615,0.8822056,2558.6,2558.4,1.95961384]
[1646712923816,0.8649,2558.5,2558.4,1.95961384]
[1646712924515,0.0173056,2558.6,2558.4,2.15491384]
[1646712924718,0.0173056,2558.6,2558.4,2.14974]
[1646712925319,0.01515444,2558.8,2558.6,4.5]
[1646712925520,9.38950365,2560.1,2558.6,4.5]
[1646712925521,0.3904,2559.7,2558.9,0.3911]
[1646712925720,0.3904,2559.7,2559.3,12.3111]
[1646712925925,3.5,2560.5,2559.6,16.42]
[1646712926122,1.59225654,2560.4,2559.8,11.92]
[1646712926380,0.60136736,2560.6,2559.9,12.411]
[1646712926381,0.00517095,2560.2,2559.9,12.411]
[1646712926568,0.00517095,2560.2,2560.0,12.89667]
[1646712926768,0.00517095,2560.2,2560.1,0.491]
[1646712927168,0.00079316,2560.6,2560.1,0.491]
[1646712927571,0.00504782,2560.2,2560.1,0.491]
[1646712928472,0.00079316,2560.6,2560.1,2.44428]
[1646712928473,0.00505377,2560.3,2560.1,2.44428]
[1646712929070,0.00505377,2560.3,2560.2,1.9529]
[1646712929470,0.00079316,2560.6,2560.2,1.9529]
[1646712929672,0.00505367,2560.4,2560.2,2.92928]
[1646712929871,0.00505367,2560.4,2560.3,0.491]
[1646712930712,0.00079316,2560.6,2560.3,0.491]
[1646712930913,0.00079316,2560.6,2560.4,0.97645]
[1646712930914,0.0050617,2560.5,2560.4,0.97645]
[1646712931116,0.0050617,2560.5,2560.4,1.46745]
[1646712931522,0.0050617,2560.5,2560.4,5.16265]
[1646712931717,0.00079316,2560.6,2560.4,6.13892]
[1646712932018,0.00079316,2560.6,2560.5,2.92882]
[1646712932217,0.00079316,2560.6,2560.5,3.41982]
[1646712932419,0.00585848,2560.6,2560.5,3.41982]
[1646712933019,0.00079316,2560.6,2560.5,3.41982]
[1646712934662,3.96793462,2561.0,2560.6,16.92]
[1646712934864,3.96793462,2561.0,2560.7,20.0106]
[1646712935262,1.2065,2561.6,2560.8,15.42]
[1646712935561,1.59153814,2561.5,2561.1,1.00170615]
[1646712935761,3.9951,2561.7,2561.2,0.491]
[1646712935762,1.61295954,2561.4,2561.2,0.491]
[1646712935963,0.0214214,2561.4,2561.2,3.41899]
[1646712936165,0.0016284,2562.0,2561.3,3.5]
[1646712936365,0.0016284,2562.0,2561.4,3.991]
[1646712936767,0.0016284,2562.0,2561.4,0.491]
[1646712937818,0.01137234,2562.0,2561.4,1.57987432]
[1646712938017,1.59138771,2561.9,2561.5,0.97584]
[1646712938215,1.59138771,2561.9,2561.6,1.95174]
[1646712938415,1.59138771,2561.9,2561.6,2.44274]
[1646712939014,0.01137234,2562.0,2561.6,2.44274]
[1646712939214,0.01137234,2562.0,2561.6,4.39448]
[1646712939414,0.01137234,2562.0,2561.7,0.97585]
[1646712939614,0.01137234,2562.0,2561.8,0.491]
[1646712940218,1.59122138,2561.9,2561.8,0.491]
[1646712940816,1.60096532,2561.9,2561.8,0.491]
[1646712941673,1.60096532,2561.9,2561.4,0.491]
[1646712941869,1.59122138,2561.8,2561.4,0.491]
[1646712942069,1.59122138,2561.8,2561.5,0.97614]
[1646712942271,1.59122138,2561.8,2561.5,1.46714]
[1646712942670,1.59122138,2561.8,2561.5,2.44324]
[1646712943172,1.59686872,2561.8,2561.5,2.44324]
[1646712943376,0.00564734,2561.8,2561.5,2.44324]
[1646712943974,0.00974394,2561.9,2561.5,2.44324]
[1646712944271,1.59694763,2561.8,2561.5,2.44324]
[1646712944472,0.00564734,2561.8,2561.5,2.44324]
[1646712944872,0.00564734,2561.8,2561.5,4.39497]
[1646712945114,0.00974394,2561.9,2561.5,4.39497]
[1646712945317,1.59132573,2561.8,2561.5,4.39497]
[1646712945516,1.59678671,2561.8,2561.5,4.39497]
[1646712945715,0.00546098,2561.8,2561.5,4.39497]
[1646712946420,0.00263262,2561.8,2561.5,2.44324]
[1646712947421,0.00974394,2561.9,2561.5,2.44324]
[1646712947823,0.00263262,2561.8,2561.5,2.44324]
[1646712948876,0.00564941,2561.8,2561.5,2.44324]
[1646712949864,0.00974394,2561.9,2561.5,2.44324]
[1646712950064,0.00974394,2561.9,2561.5,1.46714]
[1646712950065,0.00564941,2561.8,2561.5,1.46714]
[1646712950265,0.00564941,2561.8,2561.3,0.2510801]
[1646712950466,0.00564941,2561.8,2561.4,0.491]
[1646712950866,0.00564941,2561.8,2561.4,2.4429]
[1646712951072,0.00974394,2561.9,2561.5,0.97614]
[1646712951269,0.00974394,2561.9,2561.5,1.46714]
[1646712951471,0.00564947,2561.7,2561.5,1.46714]
[1646712952271,0.00974394,2561.9,2561.5,1.46714]
[1646712952471,0.00974394,2561.9,2561.6,1.95194]
[1646712952717,0.00564947,2561.7,2561.6,1.95194]
[1646712953317,0.00564947,2561.7,2561.6,5.45194]
[1646712953519,0.00974394,2561.9,2561.7,0.97579]
[1646712953717,0.00974394,2561.9,2561.8,2.44252]
[1646712955920,0.00974394,2561.9,2561.8,0.74512943]
[1646712956374,0.00974394,2561.9,2561.8,0.25412943]
[1646712956971,0.00974394,2561.9,2561.7,1.95152]
[1646712957169,0.00974394,2561.9,2561.5,0.97621]
[1646712957970,0.97945888,2561.6,2561.5,0.97621]
[1646712958171,0.00974394,2561.9,2561.5,0.97621]
[1646712958569,0.00564935,2561.8,2561.5,0.97621]
[1646712959574,1.17519015,2561.9,2561.5,0.97621]
[1646712959770,1.5914824,2561.8,2561.5,0.97621]
[1646712959970,1.5971317,2561.8,2561.5,0.97621]
[1646712960218,0.0056493,2561.8,2561.5,0.97621]
[1646712960418,2.09073658,2561.0,2560.6,10.38024078]
[1646712960617,2.09073658,2561.0,2560.9,11.04089]
[1646712960818,2.09073658,2561.0,2560.9,11.34089]
[1646712961218,2.09073658,2561.0,2560.9,7.15609]
[1646712962424,2.09073658,2561.0,2560.9,7.64709]
[1646712963026,0.00974394,2561.9,2561.2,0.97606]
[1646712963226,0.00974394,2561.9,2561.3,0.97606]
[1646712963430,1.59150604,2561.8,2561.3,0.97606]
[1646712964065,2.54514343,2561.8,2561.5,0.97608]
[1646712964265,1.59150604,2561.7,2561.6,0.97603]
[1646712964665,1.59715557,2561.7,2561.6,0.97603]
[1646712965467,1.59150604,2561.7,2561.6,0.97603]
[1646712968216,1.59715545,2561.8,2561.6,0.97603]
[1646712968417,1.59150604,2561.7,2561.6,0.97603]
[1646712969017,1.59150604,2561.7,2561.5,0.97608]
[1646712969219,2.30617883,2561.7,2561.5,0.97608]
[1646712969419,1.59150604,2561.6,2561.5,0.97608]
[1646712970621,1.59150604,2561.6,2561.4,1.95216]
[1646712970819,1.11860777,2561.5,2561.4,1.95216]
[1646712971019,2.71011381,2561.5,2561.4,1.95216]
[1646712971672,3.4247866,2561.5,2561.4,1.95216]
[1646712972870,5.11914,2561.0,2560.9,2.44334]
[1646712973070,5.11914,2561.0,2560.6,0.491]
[1646712973071,6.71064604,2561.0,2560.6,0.491]
[1646712973274,1.59150604,2560.9,2560.4,0.19556751]
[1646712973473,1.59150604,2560.9,2560.5,8.78692]
[1646712973873,0.97841223,2560.8,2560.5,8.78692]
[1646712974075,1.59150604,2560.7,2560.5,8.78692]
[1646712974374,1.59150604,2560.7,2560.6,0.00565109]
[1646712975229,2.5444031,2560.7,2560.5,8.78692]
[1646712975426,1.59150604,2560.7,2560.5,8.79257115]
[1646712975628,2.5444031,2560.7,2560.5,8.79257115]
[1646712975827,2.30408143,2560.6,2560.5,7.09435428]
[1646712976227,0.71257539,2560.6,2560.5,7.09435428]
[1646712976430,0.71257539,2560.6,2560.5,7.08870313]
[1646712976631,2.30408143,2560.7,2560.5,7.08870313]
[1646712976830,2.30408143,2560.7,2560.5,8.06512313]
[1646712977232,0.71257539,2560.6,2560.5,6.64830313]
[1646712977431,0.7120858,2560.6,2560.5,6.64830313]
[1646712977632,1.59150604,2560.6,2560.5,6.64830313]
[1646712977836,0.71229545,2560.6,2560.5,6.64830313]
[1646712978035,0.71229545,2560.6,2560.5,6.65395434]
[1646712978231,1.59150604,2560.6,2560.5,6.65395434]
[1646712978433,0.712275,2560.6,2560.5,6.65395434]
[1646712978878,1.59150604,2560.6,2560.5,6.64830313]
[1646712979068,2.30378104,2560.7,2560.5,6.64830313]
[1646712979270,1.59150604,2560.6,2560.5,6.64830313]
[1646712979968,1.59150604,2560.7,2560.5,6.64830313]
[1646712981372,1.59150604,2560.7,2560.5,6.65395434]
[1646712982075,1.59150604,2560.7,2560.5,7.63053434]
[1646712982275,1.59150604,2560.7,2560.5,7.62488313]
[1646712982719,1.59150604,2560.7,2560.5,7.63053434]
[1646712983620,1.59150604,2560.7,2560.5,7.62488313]
[1646712983820,1.59150604,2560.7,2560.5,7.63034785]
[1646712984720,1.59150604,2560.6,2560.5,7.62488313]
[1646712984920,1.59150604,2560.6,2560.5,7.63034785]
[1646712985322,1.59150604,2560.9,2560.5,11.13034785]
[1646712985524,1.59183606,2560.8,2560.5,11.62134785]
[1646712985722,1.59183606,2560.7,2560.5,10.07399785]
[1646712986021,1.59183606,2560.7,2560.5,10.06853313]
[1646712986223,1.59183606,2560.7,2560.5,10.0739978]
[1646712987169,1.59183606,2560.7,2560.5,10.06853313]
[1646712987371,5.11914,2561.0,2560.5,11.07386892]
[1646712987570,1.5918005,2560.9,2560.6,1.95278]
[1646712988373,1.5918005,2560.9,2560.5,7.62488313]
[1646712988374,1.10831386,2560.7,2560.5,7.62488313]
[1646712988571,1.10831386,2560.7,2560.5,6.64830313]
[1646712988572,1.5918005,2560.6,2560.5,6.64830313]
[1646712989372,1.37721992,2560.0,2559.9,0.97661]
[1646712989772,1.37721992,2560.0,2559.9,1.95327]
[1646713000618,1.37721992,2560.0,2559.9,0.97666]
[1646713000619,2.55521992,2560.0,2559.9,0.97666]
[1646713001219,2.55521992,2560.0,2559.8,9.30865525]
[1646713001471,2.55521992,2560.0,2559.4,2.7593]
[1646713001472,1.178,2559.8,2559.4,7.35]
[1646713001773,1.178,2559.6,2559.4,7.35]
[1646713001971,2.77033696,2559.5,2559.4,7.35]
[1646713002270,3.97453318,2559.5,2559.4,7.35]
[1646713002472,3.97453318,2559.5,2558.6,3.90716]
[1646713002473,1.178,2558.7,2558.6,3.90716]
[1646713002670,1.178,2558.7,2558.0,7.35]
[1646713002671,6.27110948,2558.7,2558.0,7.35]
[1646713002870,6.27110948,2558.7,2557.7,4.5531]
[1646713002871,1.178,2558.5,2557.7,0.19556751]
[1646713003074,4.678,2558.5,2557.7,0.19556751]
[1646713003271,4.678,2558.5,2557.7,2.15060751]
[1646713003476,1.178,2558.3,2557.7,2.15060751]
[1646713003672,1.59327008,2558.4,2557.7,2.15060751]
[1646713003673,1.178,2558.4,2557.7,2.15060751]
[1646713003873,1.178,2558.4,2557.8,0.97742]
[1646713004273,1.178,2558.4,2557.8,1.17298751]
[1646713004671,3.5,2558.8,2557.8,1.17298751]
[1646713004672,1.178,2558.3,2557.8,1.17298751]
[1646713004872,1.178,2558.3,2557.9,0.97731]
[1646713005317,1.178,2558.3,2557.9,1.17287751]
[1646713005515,1.178,2558.3,2557.9,1.17424639]
[1646713006315,1.178,2558.3,2557.9,1.16860351]
[1646713006718,1.178,2558.2,2558.0,0.9826863]
[1646713006919,1.178,2558.2,2558.1,1.95464]
[1646713007721,1.5691,2558.9,2558.1,1.95464]
[1646713007921,11.1587,2559.0,2558.1,1.95464]
[1646713007922,1.178,2558.7,2558.1,1.95464]
[1646713008966,1.178,2558.7,2558.3,0.00531599]
[1646713009166,1.178,2558.4,2558.3,0.00531599]
[1646713009764,1.178,2558.7,2558.3,0.00531599]
[1646713009966,1.178,2558.7,2558.3,0.97731]
[1646713010864,10.0,2559.0,2558.3,0.97731]
[1646713010865,1.178,2558.5,2558.3,1.95454]
[1646713011070,1.178,2558.5,2558.3,0.97731]
[1646713011266,1.178,2558.5,2558.1,1.95464]
[1646713011470,1.178,2558.5,2558.4,0.00533791]
[1646713011670,9.19666726,2558.0,2557.9,2.95487]
[1646713011870,9.19666726,2558.0,2557.9,1.95487]
[1646713012073,9.19666726,2558.0,2557.9,2.95487]
[1646713012272,9.19666726,2558.0,2557.9,1.95487]
[1646713012472,9.19666726,2558.0,2557.9,2.95487]
[1646713012716,9.19666726,2558.0,2557.9,1.95487]
[1646713012918,9.19666726,2558.0,2557.9,2.95487]
[1646713013217,9.19666726,2558.0,2557.9,1.95487]
[1646713013415,9.19666726,2558.0,2557.9,2.95487]
[1646713014616,9.19666726,2558.0,2557.9,1.95487]
[1646713017569,9.19666726,2558.0,2557.9,1.948468]
[1646713019373,9.19666726,2558.0,2557.9,2.248468]
[1646713019571,9.19666726,2558.0,2557.9,2.739468]
[1646713019771,9.19666726,2558.0,2557.9,3.739468]
[1646713021920,9.19666726,2558.0,2557.9,7.239468]
[1646713022124,10.0,2559.0,2557.9,12.50666751]
[1646713022422,0.00564218,2558.2,2558.1,13.28815]
[1646713022624,10.0,2559.0,2558.4,0.97694]
[1646713022822,10.0,2559.0,2558.5,14.3648688]
[1646713023423,10.0,2559.0,2558.6,1.9537]
[1646713023624,10.0,2559.0,2558.7,0.491]
[1646713023877,4.13904,2559.0,2558.7,3.42154]
[1646713024266,4.13904,2559.0,2558.7,5.6983779]
[1646713024467,4.13904,2559.0,2558.7,2.7447]
[1646713024668,4.13904,2559.0,2558.7,4.72154]
[1646713024669,4.14172923,2559.0,2558.7,4.72154]
[1646713025071,4.14172923,2559.0,2558.8,0.97684]
[1646713025270,1.16286721,2558.9,2558.7,1.72245643]
[1646713025469,1.16286721,2558.9,2558.3,0.491]
[1646713025470,4.66286721,2558.9,2558.3,0.491]
[1646713025670,4.66286721,2558.9,2558.0,0.98656751]
[1646713025974,4.66286721,2558.9,2558.4,1.95458]
[1646713026373,1.59314291,2558.8,2558.0,1.95458]
[1646713026573,0.95286104,2558.3,2558.0,1.95458]
[1646713027374,0.95286104,2558.3,2558.2,1.95469]
[1646713028020,3.50564191,2558.5,2558.2,1.95469]
[1646713028021,3.5,2558.5,2558.2,1.95469]
[1646713028221,0.00564208,2558.4,2558.2,1.95469]
[1646713029223,3.5,2558.6,2558.2,1.95469]
[1646713029423,0.00564203,2558.4,2558.2,1.95469]
[1646713029625,6.09041,2558.0,2557.9,0.00564315]
[1646713030426,6.09041,2558.0,2557.8,1.9548]
[1646713030626,6.09041,2558.0,2557.9,0.97746]
[1646713032284,7.26841,2558.0,2557.9,0.97746]
[1646713036625,7.26841,2558.0,2557.8,1.96024955]
[1646713036828,7.26841,2558.0,2557.8,0.00532955]
[1646713037225,7.26841,2558.0,2557.9,0.5]
[1646713037424,10.02908573,2558.0,2557.9,0.5]
[1646713038627,6.178,2557.9,2557.8,2.961e-05]
[1646713038884,7.7716284,2557.9,2557.4,7.35]
[1646713039172,1.178,2557.7,2557.4,7.35]
[1646713039376,1.178,2557.5,2557.4,7.35]
[1646713040275,1.178,2557.5,2557.4,7.85]
[1646713041376,2.77181073,2557.5,2557.4,7.85]
[1646713042481,1.178,2556.8,2556.6,1.95589]
[1646713042721,1.178,2557.4,2557.3,0.00564357]
[1646713043122,2.77185267,2557.4,2557.3,0.00564357]
[1646713043724,2.77185267,2557.4,2556.8,0.97798]
[1646713043922,1.178,2557.2,2556.8,1.00055814]
[1646713044125,1.178,2557.1,2556.8,0.02257814]
[1646713044525,2.32256475,2556.9,2556.8,0.02257814]
[1646713045022,1.178,2556.9,2556.6,2.93387]
[1646713045224,1.178,2556.9,2556.8,0.00564415]
[1646713046024,1.178,2556.9,2556.7,0.97794]
[1646713046476,1.178,2556.9,2556.7,0.98358426]
[1646713046876,1.5691,2557.4,2556.7,0.98358426]
[1646713047079,1.178,2557.2,2556.7,1.96147426]
[1646713047280,1.178,2557.2,2556.7,1.95583]
[1646713047478,1.178,2557.2,2556.7,1.96128382]
[1646713048478,1.178,2557.2,2556.7,1.95583]
[1646713048679,1.178,2557.2,2556.8,0.00545366]
[1646713048879,1.178,2557.2,2556.9,1.95572]
[1646713049881,1.178,2557.2,2556.9,1.96117355]
[1646713050928,1.178,2557.2,2556.9,1.95572]
[1646713051127,1.178,2557.2,2556.9,1.9610605]
[1646713052132,1.178,2557.2,2556.9,1.95572]